Cogmind - Beta 13 @@@ ROGUE MODE // 2024.04.04 @ 08:23:55 Player: writers.room Result: Destroyed by H-55 Commando with Gauss Rifle Performance ------------- Evolutions (2) 1000 Regions Visited (6) 1200 Robots Destroyed (45) 225 Value Destroyed (1178) 1178 Prototype IDs (3) 60 Alien Tech Used (0) 0 Bonus (0) 0 TOTAL SCORE: 3663 Bonus ------- None Cogmind --------- Core Integrity 0/550 Matter 300/300 Energy 100/100 System Corruption 2% Temperature Cool (0) Movement Core (50) Location -8/Storage Parts ------- > --- POWER (2) -------- (None) > --- PROPULSION (3) --- (None) > --- UTILITY (4) ------ (None) > --- WEAPON (2) ------- (None) > --- INVENTORY (5) ---- Nuclear Core Improved VTOL Module Cooling System Medium Storage Unit Heavy Hammer Peak State ------------ > --- POWER ------------ Nuclear Core Nuclear Core > --- PROPULSION ------- Light Treads Light Treads > --- UTILITY ---------- Cooling System Cooling System Medium Storage Unit Sensor Drone Bay > --- WEAPON ----------- Field Laser Ion Cannon > --- INVENTORY -------- Light Deuterium Engine Light Deuterium Engine Light Deuterium Engine Nuclear Core Nuclear Core Medium Storage Unit Heavy Hammer Heavy Hammer Heavy Hammer [Rating: 29] Favorites ----------- Power Light Ion Engine Engine Light Ion Engine Power Core Nuclear Core Propulsion Light Treads Treads Light Treads Wheel Compact Wheel Flight Unit Flight Unit Utility Sensor Drone Bay Device Sensor Drone Bay Storage Small Storage Unit Processor Advanced Visual Processing Unit Weapon Heavy Hammer Energy Gun Improved Medium Laser Energy Cannon Advanced Beam Cannon Launcher Rocket Launcher Impact Weapon Heavy Hammer Slashing Weapon Mining Claw Build | -11 -10 -10 -9 -9 -8 -8 ------- Run | Yrd Mat Min Mat Min Mat Sto Slots Evolved 4 | . . . 2 . 2 . Power 1 | . . . . . 1 . Propulsion 1 | . . . 1 . . . Utility 2 | . . . 1 . 1 . Weapon . | . . . . . . . Parts Attached 53 | . . 7 20 1 15 10 Power 9 | . . 1 2 1 2 3 Engine 6 | . . 1 2 1 . 2 Core 3 | . . . . . 2 1 Reactor . | . . . . . . . Propulsion 20 | . . 2 9 . 5 4 Treads 13 | . . . 4 . 5 4 Leg . | . . . . . . . Wheel 4 | . . 2 2 . . . Hover . | . . . . . . . Flight 3 | . . . 3 . . . Utility 11 | . . 3 2 . 3 3 Device 7 | . . 2 2 . 2 1 Storage 2 | . . 1 . . 1 . Processor 2 | . . . . . . 2 Hackware . | . . . . . . . Protection . | . . . . . . . Artifact . | . . . . . . . Weapon 13 | . . 1 7 . 5 . Energy Gun 4 | . . . 3 . 1 . Energy Cannon 4 | . . . 3 . 1 . Ballistic Gun . | . . . . . . . Ballistic Cannon . | . . . . . . . Launcher 1 | . . . 1 . . . Special Weapon . | . . . . . . . Impact Weapon 3 | . . . . . 3 . Slashing Weapon 1 | . . 1 . . . . Piercing Weapon . | . . . . . . . Special Melee Weapon . | . . . . . . . Unidentified Prototypes 3 | . . 1 2 . . . Corrupted Parts 1 | . . . 1 . . . System Corruption 2 | . . . 2 . . . Parts Lost 20 | . . . 3 1 4 12 Power 7 | . . . 1 1 1 4 Propulsion 8 | . . . 2 . 2 4 Utility 3 | . . . . . 1 2 Weapon 2 | . . . . . . 2 Highest Loss Streak 8 | . . . 2 1 4 8 To Critical Strikes . | . . . . . . . Average Slot Usage (%) 81 | . . 52 91 90 88 82 Engine 6 | . . 8 10 2 1 5 Core 3 | . . . . . 13 5 Treads 15 | . . . 13 33 20 20 Wheel 4 | . . 17 3 . . . Flight 3 | . . . 11 . . . Device 17 | . . 3 22 22 25 8 Storage 9 | . . 8 11 11 9 9 Processor 2 | . . . . . . 16 Energy Gun 3 | . . . 7 . 2 . Energy Cannon 7 | . . . 9 22 9 . Impact Weapon 3 | . . . . . 5 17 Slashing Weapon 3 | . . 14 1 . . . Naked Turns 28 | . 24 2 . . . 2 Heaviest Build 51 | . . 16 32 34 51 40 Greatest Support 69 | 3 3 32 60 60 60 69 Greatest Overweight (x) 9 | . . 5 9 9 2 7 Average Overweight (x) . | . . . 1 3 . . Largest Inventory Capacity 10 | 5 5 8 8 8 10 10 Average Capacity 8 | 5 5 6 8 8 9 9 Most Carried 10 | . . 4 6 5 10 10 Average Carried 4 | . . 2 3 5 7 8 Final Capacity 10 | 5 5 8 8 8 10 5 Final Carried 7 | . . 4 5 5 7 5 Class Distribution -------------------- 56% | Scavenger-Mutant 43% | Mutant Dominant Class ---------------- Mutant | -10/Materials Scavenger-Mutant | -10/Mines Scavenger-Mutant | -9/Materials Scavenger-Mutant | -9/Mines Mutant | -8/Materials Mutant | -8/Storage Resources | -11 -10 -10 -9 -9 -8 -8 ----------- Run | Yrd Mat Min Mat Min Mat Sto Matter Collected 729 | . . 270 238 16 110 95 Remotely . | . . . . . . . Salvage Created 1680 | . . 395 566 185 323 211 Parts 91 | . . 16 47 8 14 6 Haulers Intercepted 1 | . . . 1 . . . Recyclers Shooed . | . . . . . . . Parts Field Recycled . | . . . . . . . Retrieved Matter . | . . . . . . . Parts Self-Destructed . | . . . . . . . Prevented . | . . . . . . . Kills | -11 -10 -10 -9 -9 -8 -8 ------- Run | Yrd Mat Min Mat Min Mat Sto Combat Hostiles Destroyed 30 | . . . 15 4 6 5 Melee 5 | . . . . . 1 4 Guns 4 | . . . 4 . . . Cannons 12 | . . . 4 4 4 . AOE 7 | . . . 7 . . . Classes Destroyed 10 | . . 4 4 1 1 . Worker 5 | . . 2 2 1 . . Builder 2 | . . 1 1 . . . Tunneler 2 | . . 2 . . . . Hauler 1 | . . . 1 . . . Recycler 4 | . . 2 1 1 . . Watcher 1 | . . . . . 1 . Swarmer 8 | . . . 8 . . . Grunt 12 | . . . 3 2 4 3 Sentry 8 | . . . 4 . 2 2 Demolisher 2 | . . . . 2 . . Best Kill Streak 9 | . . 2 9 2 3 4 Combat Bots Only 8 | . . . 8 2 2 4 Max Kills in Single Turn 3 | . . 1 3 1 1 1 Gunslinging . | . . . . . . . Exploded 2 | . . . 2 . . . Melee 1 | . . . . . 1 1 Uniques/NPCs Destroyed . | . . . . . . . Combat | -11 -10 -10 -9 -9 -8 -8 -------- Run | Yrd Mat Min Mat Min Mat Sto Hostile Shots Fired 343 | . . 1 88 13 75 166 Missed 96 | . . 1 31 3 15 46 Damage Taken 3757 | . . . 730 374 920 1733 Core 791 | . . . 197 39 150 405 Absorbed by Shields . | . . . . . . . Core Remaining (%) 80 | 100 . 100 . 41 . . Volleys Fired 61 | . . . 31 11 19 . Largest 2 | . . . 2 2 1 . Hottest 136 | . . . 136 136 60 . Shots Fired 92 | . . . 51 22 19 . Gun 16 | . . . 16 . . . Cannon 70 | . . . 29 22 19 . Launcher 6 | . . . 6 . . . Special . | . . . . . . . Kinetic . | . . . . . . . Thermal 75 | . . . 34 22 19 . Explosive 6 | . . . 6 . . . Electromagnetic 11 | . . . 11 . . . Robot Hit Streak 16 | . . . 16 4 6 . Robot Miss Streak 3 | . . . 3 3 1 . Penetration Max . | . . . . . . . Secondary Targets . | . . . . . . . Shots Hit Robots 98 | . . 16 30 10 21 21 Core Hits 51 | . . 7 24 7 8 5 Critical Kills 2 | . . . . . . 2 Critical Parts Destroyed 4 | . . . . . 1 3 Critical Strikes 8 | . . . 2 . 1 5 Burn 2 | . . . 2 . . . Smash 6 | . . . . . 1 5 Melee Attacks 60 | . . 16 4 . 7 33 Impact 40 | . . . . . 7 33 Slashing 20 | . . 16 4 . . . Piercing . | . . . . . . . Sneak Attacks 11 | . . 11 . . . . Combat Hostiles . | . . . . . . . Follow-up Attacks 5 | . . . . . . 5 Damage Inflicted 3308 | . . 684 1059 284 555 726 Guns 226 | . . . 226 . . . Cannons 960 | . . . 330 284 346 . Explosions 439 | . . . 439 . . . Melee 1653 | . . 684 45 . 209 715 Ramming 30 | . . . 19 . . 11 Kinetic . | . . . . . . . Thermal 1147 | . . . 517 284 346 . Explosive 354 | . . . 354 . . . Electromagnetic 124 | . . . 124 . . . Impact 924 | . . . . . 209 715 Slashing 729 | . . 684 45 . . . Piercing . | . . . . . . . Highest Corruption 2 | . . . 2 2 . 2 Average Corruption 2 | . . . 2 2 . 2 Corruption Purged . | . . . . . . . Corruption Blocked . | . . . . . . . Effects 6 | . . . 2 4 . . Message Errors 4 | . . . 2 2 . . Matter Fused 1 | . . . . 1 . . Heat Flow Errors 1 | . . . . 1 . . Overload Shots . | . . . . . . . Overflow Damage 277 | . . 131 . . 35 111 Projectiles . | . . . . . . . Explosions . | . . . . . . . Melee 277 | . . 131 . . 35 111 Knockbacks 4 | . . . . . 2 2 Impact 4 | . . . . . 2 2 Kinetic . | . . . . . . . Secondary . | . . . . . . . Self-Inflicted Damage 84 | . . . 79 . . 5 Shots 2 | . . . 2 . . . Rammed 5 | . . . 4 . . 1 Targets Rammed 5 | . . . 4 . . 1 Kicked . | . . . . . . . Crushed . | . . . . . . . Highest Temperature 358 | . . . 309 358 5 11 Average Temperature 72 | . . . 61 107 5 6 Received Heat Transfer 1395 | . . . 162 36 522 675 Siege Activations . | . . . . . . . Robots Corrupted . | . . . . . . . Combat Hostiles . | . . . . . . . Parts Fried 2 | . . . . . 1 1 Impact Corruptions 6 | . . . . . 2 4 Robots Melted . | . . . . . . . Combat Hostiles . | . . . . . . . Parts Melted 4 | . . . 3 1 . . Heat Transferred 2172 | . . . 1099 518 555 . Parts Sabotaged . | . . . . . . . Parts Stolen . | . . . . . . . Parts Stripped . | . . . . . . . Power Chain Reactions 1 | . . . 1 . . . Alert | -11 -10 -10 -9 -9 -8 -8 ------- Run | Yrd Mat Min Mat Min Mat Sto Peak Influence 326 | . . 45 326 194 160 262 Initial 79 | . . . 5 79 75 27 Average 120 | . . 20 187 163 76 139 Maximum Alert Level 1 | . . . 1 . . 1 Low Security (%) 76 | 100 100 100 46 100 100 68 Level 1 23 | . . . 53 . . 31 Level 2 . | . . . . . . . Level 3 . | . . . . . . . Level 4 . | . . . . . . . Level 5 . | . . . . . . . High Security . | . . . . . . . Max Security . | . . . . . . . Squads Dispatched 3 | . 1 . . . . 2 Investigation 2 | . 1 . . . . 1 Extermination . | . . . . . . . Reinforcement 1 | . . . . . . 1 Assault . | . . . . . . . Garrison . | . . . . . . . Intercept . | . . . . . . . Searches Triggered . | . . . . . . . Construction Impeded . | . . . . . . . Haulers Reinforced . | . . . . . . . Active Scanning Responses . | . . . . . . . Cargo Convoy Interrupts . | . . . . . . . Stealth | -11 -10 -10 -9 -9 -8 -8 --------- Run | Yrd Mat Min Mat Min Mat Sto Distress Signals 6 | . . . 5 . 1 . Communications Jammed . | . . . . . . . Distress Signals . | . . . . . . . Times Spotted 52 | . . 2 22 4 11 13 Peak Tracking Total 5 | . . 2 5 2 5 4 Tactical Retreats 5 | . . 1 1 . 1 2 Traps | -11 -10 -10 -9 -9 -8 -8 ------- Run | Yrd Mat Min Mat Min Mat Sto Traps Triggered 2 | . 1 . . . . 1 Indirectly . | . . . . . . . Trap Hack Attempts . | . . . . . . . Triggered . | . . . . . . . Disarmed . | . . . . . . . Reprogrammed . | . . . . . . . Reused . | . . . . . . . Traps Extracted . | . . . . . . . Installed . | . . . . . . . Triggered . | . . . . . . . Machines | -11 -10 -10 -9 -9 -8 -8 ---------- Run | Yrd Mat Min Mat Min Mat Sto Machines Disabled 4 | . . . 2 . . 2 Max in Single Turn 1 | . . . 1 . . 1 Machines Repaired . | . . . . . . . Machines Dismantled . | . . . . . . . Machines Sabotaged . | . . . . . . . Overloaded Fab Kills . | . . . . . . . Hacking | -11 -10 -10 -9 -9 -8 -8 --------- Run | Yrd Mat Min Mat Min Mat Sto Machines Accessed 7 | . 1 1 1 1 1 2 Terminals 6 | . 1 . 1 1 1 2 Fabricators . | . . . . . . . Repair Stations . | . . . . . . . Recycling Units . | . . . . . . . Scanalyzers . | . . . . . . . Garrison Access . | . . . . . . . Total Hacks 16 | . 3 1 5 2 2 3 Successful 6 | . . 1 1 . 1 3 Failed 10 | . 3 . 4 2 1 . Catastrophic 2 | . . . . 2 . . Database Lockouts . | . . . . . . . Manual 14 | . 3 . 4 2 2 3 Terminals 15 | . 3 . 5 2 2 3 Fabricators . | . . . . . . . Repair Stations . | . . . . . . . Recycling Units . | . . . . . . . Scanalyzers . | . . . . . . . Garrison Access . | . . . . . . . Terminal Hacks 6 | . . 1 1 . 1 3 Robot Schematic 1 | . . . . . 1 . Open Door 2 | . . 1 . . . 1 Branch Access Points 1 | . . . . . . 1 Zone Layout 2 | . . . 1 . . 1 Fabricator Hacks . | . . . . . . . Repair Station Hacks . | . . . . . . . Recycling Unit Hacks . | . . . . . . . Scanalyzer . | . . . . . . . Garrison Access Hacks . | . . . . . . . Unauthorized Hacks . | . . . . . . . Terminals . | . . . . . . . Fabricators . | . . . . . . . Repair Stations . | . . . . . . . Recycling Units . | . . . . . . . Scanalyzers . | . . . . . . . Garrison Access . | . . . . . . . Data Cores Recovered . | . . . . . . . Used . | . . . . . . . Hacking Detections 3 | . 1 . 1 1 . . Full Trace Events 3 | . 1 . 1 1 . . Feedback Events . | . . . . . . . Feedback Blocked . | . . . . . . . Robot Schematics Acquired 1 | . . . . . 1 . Robots Built . | . . . . . . . Authchips . | . . . . . . . Time . | . . . . . . . Total Robot Build Rating . | . . . . . . . Part Schematics Acquired . | . . . . . . . Parts Built . | . . . . . . . Authchips . | . . . . . . . Time . | . . . . . . . Total Part Build Rating . | . . . . . . . Parts Repaired . | . . . . . . . Time . | . . . . . . . Parts Recycled . | . . . . . . . Recycled Matter . | . . . . . . . Retrieved Matter . | . . . . . . . Retrieved Components . | . . . . . . . Parts Scanalyzed . | . . . . . . . Part Schematics Acquired . | . . . . . . . Parts Damaged . | . . . . . . . Bothacking | -11 -10 -10 -9 -9 -8 -8 ------------ Run | Yrd Mat Min Mat Min Mat Sto Used RIF Installer . | . . . . . . . Robots Hacked . | . . . . . . . Non-combat . | . . . . . . . Combat . | . . . . . . . Robot Hacks Applied . | . . . . . . . Relay Couplers Released . | . . . . . . . Fabnet Peak Effective % . | . . . . . . . Robots Rewired . | . . . . . . . Allies Hacked . | . . . . . . . Hacks Repelled . | . . . . . . . Allies | -11 -10 -10 -9 -9 -8 -8 -------- Run | Yrd Mat Min Mat Min Mat Sto Total Allies . | . . . . . . . Largest Group . | . . . . . . . Highest-Rated Group . | . . . . . . . Highest-Rated Ally . | . . . . . . . Total Orders 6 | . . 1 3 . 2 . EXPLORE 4 | . . . 3 . 1 . RETURN 2 | . . 1 . . 1 . Ally Attacks . | . . . . . . . Total Damage . | . . . . . . . Kills . | . . . . . . . Allies Corrupted 1 | . . . . . 1 . Allies Melted . | . . . . . . . Intel | -11 -10 -10 -9 -9 -8 -8 ------- Run | Yrd Mat Min Mat Min Mat Sto Robot Analysis Total . | . . . . . . . Derelict Logs Recovered . | . . . . . . . Drone Launches 40 | . . 1 21 . 18 . Drone Recoveries 34 | . . 1 19 . 14 . Exploration | -11 -10 -10 -9 -9 -8 -8 ------------- Run | Yrd Mat Min Mat Min Mat Sto Turns Passed 2564 | 10 24 465 873 214 577 401 Spaces Moved 1413 | 19 48 527 350 60 234 175 Core 413 | 19 48 274 32 25 . 15 Treads 597 | . . . 168 35 234 160 Legs . | . . . . . . . Wheels 303 | . . 253 50 . . . Hover . | . . . . . . . Flight 100 | . . . 100 . . . Fastest Speed 50 | 50 50 50 95 160 160 50 Average Speed 143 | 50 50 74 188 301 196 170 Slowest Speed 500 | 50 50 300 500 500 320 400 Overloaded Moves . | . . . . . . . Propulsion Burnouts . | . . . . . . . Robots Hopped . | . . . . . . . Cave-ins Triggered . | . . . . . . . Exploration Rate (%) 28 | 4 10 71 44 11 26 34 Regions Visited 6 Branch Regions 3 Pre-discovered Areas 1 | . . 1 . . . . Known Exits Taken 2 | . . . 1 . 1 . Unknown Exits Taken 4 | 1 1 1 . 1 . . Scrap Searched 2 | . . 1 . 1 . . Spaces Dug 6 | . . . . . . 6 Terrain Destroyed 55 | . . . 49 . . 6 Melee 6 | . . . . . . 6 Projectile . | . . . . . . . AOE 49 | . . . 49 . . . Terrain Rammed . | . . . . . . . Walls Destroyed . | . . . . . . . Machines Disabled . | . . . . . . . Actions | -11 -10 -10 -9 -9 -8 -8 --------- Run | Yrd Mat Min Mat Min Mat Sto Total 1765 | 18 47 565 509 71 325 230 Wait 98 | . . 5 64 . 23 6 Move 1407 | 18 47 526 349 59 233 175 Hop . | . . . . . . . Pick Up 26 | . . 3 9 . 9 5 Fast Attach 31 | . . 7 12 1 8 3 Attach 18 | . . . 7 . 7 4 Detach 25 | . . 1 13 . 9 2 Swap 4 | . . . 1 . . 3 Drop 30 | . . 1 15 . 10 4 Fire 61 | . . . 31 11 19 . Melee 54 | . . 16 4 . 7 27 Ram 3 | . . . 2 . . 1 Kick . | . . . . . . . Crush 2 | . . . 2 . . . Escape Stasis . | . . . . . . . Rewire 6 | . . 6 . . . . Trap . | . . . . . . . Miscellaneous . | . . . . . . . Route ------- -11/Scrapyard -10/Materials -10/Mines -9/Materials -9/Mines -8/Materials -8/Storage (discovered 1 exit: Rec) History --------- Turn | Location | Event 3 | -11/Scrapyard | Discovered new exit (range 15) 11 | -11/Scrapyard | Entered Materials 25 | -10/Materials | Discovered new exit (range 15) 35 | -10/Materials | Entered Mines 115 | -10/Mines | Received a Rocket Launcher from a helpful Derelict 161 | -10/Mines | Found the Drone Emporium 162 | -10/Mines | Found Prototype Device 162 | -10/Mines | Identified Sensor Drone Bay 185 | -10/Mines | Learned location of Storage (-8) 498 | -10/Mines | Discovered new exit (range 3) 500 | -10/Mines | Entered Materials 500 | -9/Materials | Evolved 2 slots: Propulsion x1, Utility x1 521 | -9/Materials | Build established: Scavenger-Mutant 544 | -9/Materials | Discovered new exit (range 60) 554 | -9/Materials | Identified exit to Mines 647 | -9/Materials | Destroyed 8 combat bots 1373 | -9/Materials | Entered Mines 1374 | -9/Mines | Assembled infested the area 1386 | -9/Mines | Discovered new exit (range 9) 1390 | -9/Mines | Core integrity fell below 50% 1587 | -9/Mines | Entered Materials 1587 | -8/Materials | Evolved 2 slots: Power x1, Utility x1 1960 | -8/Materials | Build established: Mutant 2008 | -8/Materials | Discovered new exit (range 29) 2009 | -8/Materials | Identified exit to Storage 2058 | -8/Materials | Lost 4 allies 2113 | -8/Materials | Lost 4 parts (1p2n1u) 2164 | -8/Materials | Entered Storage 2250 | -8/Storage | Identified exit to Recycling 2426 | -8/Storage | Lost 3 parts (1p1n1u) 2505 | -8/Storage | Core integrity fell below 50% 2557 | -8/Storage | Lost 8 parts (3p3n1u1w) 2557 | -8/Storage | Core integrity fell below 20% 2563 | -8/Storage | Released all parts (3) 2565 | -8/Storage | Destroyed by H-55 Commando with Gauss Rifle Last Messages --------------- 02524_ M-13 Machinist repairs H-55 Commando. 02526_ Imp. Heat Sink destroyed. 02530_ Critical hit (Burn: +37). 02550_ Connecting with Door Terminal... 02552_ Slug penetrates H-55 Commando. 02554_ Penetrated by Slug. 02555_ Slug penetrates Wall. 02556_ Critical hit (Burn: +37). 02557_ Slug penetrates Sealed Blast Doors. 02560_ Slug penetrates G-47 Trooper. 02562_ Slug penetrates Door Terminal. 02562_ Hvy. Hammer destroyed. 02563_ Slug penetrates Door Terminal. 02563_ Door Terminal disabled. 02563_ Released Adv. Visual Processing Unit. 02563_ Released Med. Storage Unit. 02563_ Released Machine Analyzer. 02564_ Slammed into H-55 Commando. 02564_ H-55 Commando knocked back. 02564_ Destabilizing: System corrupted (+2). Map ----- +----------------------------------------------------+ | | | | | | | | | | | | | | | | | | | | | | | | | | | ?????????????????????????????????????????? | | ?????????????????????????????????????????? | | ?????????????????????????????????????????? | | ?????????????????????????????????????????? | | ?????????????????????????????????????????? | | ?????????????????????????????????????????? | | ?????????????????????????????????????????? | | ?????????????????????????????????????????? | | ?????????????????????????????????????????? | | ?????????????????????"""???###???????????? | | ##???????????????????? ?##*#???????????? | | #???????????????????#+#h##[!"???????????? | | #???????????????????# @g*["?>?????????? | | #???????????????????# hg "???????????? | | #???????????????????# #####"???????????? | | #???????????????????# #????????????????? | | #???????????????????# ###??????????????? | | ##???????????????????# + "??????????????? | | ########?????????????/ #T#??????????????? | | #???????????? # ###??????????????? | | #####????????## #????????????????? | | #"""#????###### #????????????????? | | /####### T"###### #????????????????? | | ## # #????????????????? | | ## # #????????????????? | | ## """ """ """ # #????????????????? | | ## """ """ """ + #####????????????? | | ## """ """ """ # +????????????? | | ## / ##########????????????? | | #####"T"########+#####??????????????????? | | #???#"""#??# #??????????????????? | | #???#####??# "" #??????????????????? | | / " = "????????????????????? | | ############# "" !"????????????????????? | | ????????????# "* "????????????????????? | | ????????????# ?"]*"" +??????????????????? | | ????????????# ?"" "? #??????????????????? | +----------------------------------------------------+ Best States ------------- Heat Dissipation 75 Energy Generation 23 Energy Capacity 380 Matter Stores 300 Matter Capacity 300 Sight Range 20 Robot Scan Range 15 Terrain Scan Density 10 Evasion (%) 50 Recoil Reduction 3 Item Schematics ----------------- None Robot Schematics ------------------ G-47 Trooper | -8/Materials | Hacked Fabricated ------------ Nothing Alien Tech Used ----------------- None Achievements -------------- None Challenges ------------ None Game ------ Seed CannonPhysicsSabre Manual? 0 Play Time 00:22:21 Cumulative 31.6 hours Start 2024.04.04 @ 08:02:41 End 2024.04.04 @ 08:23:55 Sessions 1 Manual Loads 0 Difficulty Rogue Special Mode None Game No. 81 Rogue 41 Adventurer 14 Explorer 26 Win Type - Total 0 Types 0/0/0/0/0/0/0/0/0 Lore% 21 Gallery% 30 Achievement% 26 Wizard Run 0 Options --------- Layout 0 ASCII 0 Keyboard 1 Movement Vi Keybinds 0 Fullscreen 1 Font 18/SmallcapsGlow Map View 76x50 Zoom Use 0% Tactical HUD 1 Map Filters NONE Filters NONE Steam 1 RUN: d0ea078a-b950-4747-9013-ee0f600d08b0